bitfinex/quotes_BTCUSD_20260311
["timestamp","ask_amount","ask_price","bid_price","bid_amount"]
[1773188307520,0.00964132,69965.0,69947.0,0.01068]
[1773188308081,0.00863863,69963.0,69947.0,0.01068]
[1773188308283,0.00693863,69963.0,69947.0,0.01068]
[1773188308725,0.00693863,69963.0,69947.0,0.08216254]
[1773188309104,0.00693863,69963.0,69947.0,0.01068]
[1773188309305,0.00693863,69963.0,69939.0,0.0714899]
[1773188309306,0.00846434,69958.0,69930.0,0.07149991]
[1773188309572,0.00846434,69949.0,69929.0,0.0016]
[1773188309737,0.00846434,69947.0,69929.0,0.0016]
[1773188310181,0.00846434,69947.0,69925.0,0.00023]
[1773188310182,0.00846434,69945.0,69925.0,0.00023]
[1773188310353,0.07148371,69946.0,69919.0,0.0017182]
[1773188310354,0.07148371,69946.0,69919.0,0.0002782]
[1773188310355,0.00846434,69939.0,69919.0,0.0002782]
[1773188310525,0.16349609,69940.0,69919.0,0.0002782]
[1773188310526,0.00893024,69937.0,69919.0,0.0002782]
[1773188310725,0.00930286,69937.0,69919.0,0.07178936]
[1773188310939,0.00144,69936.0,69919.0,0.07178936]
[1773188311140,0.00893024,69935.0,69919.0,0.07178936]
[1773188311475,0.00893024,69935.0,69919.0,0.07178929]
[1773188311943,0.07149598,69934.0,69919.0,0.07178929]
[1773188312143,0.00144,69933.0,69919.0,0.07246465]
[1773188312344,0.00144,69932.0,69919.0,0.0002782]
[1773188312550,0.00893024,69931.0,69919.0,0.07178908]
[1773188313132,0.00893024,69931.0,69919.0,0.0002782]
[1773188314239,0.01045326,69930.0,69919.0,0.07198935]
[1773188314852,0.07293812,69932.0,69919.0,0.07198935]
[1773188315690,0.01127534,69931.0,69919.0,0.0004782]
[1773188316243,0.01127534,69929.0,69919.0,0.0004782]
[1773188316440,0.01127534,69929.0,69919.0,0.07198906]
[1773188316700,0.01127534,69929.0,69919.0,0.0004782]
[1773188316873,0.07293848,69932.0,69919.0,0.07198906]
[1773188317392,0.08456744,69932.0,69919.0,0.07198906]
[1773188318631,0.08456744,69932.0,69919.0,0.0004782]
[1773188318833,0.01192016,69931.0,69919.0,0.0004782]
[1773188320792,0.01213819,69929.0,69919.0,0.0004782]
[1773188321125,0.01213819,69929.0,69917.0,0.06061141]
[1773188321927,0.01213819,69929.0,69916.0,0.07151385]
[1773188322192,0.01213819,69929.0,69912.0,0.0002]
[1773188322357,0.01213819,69929.0,69898.0,0.0715323]
[1773188322358,0.01213819,69927.0,69907.0,0.07152323]
[1773188322558,0.15079224,69928.0,69911.0,9.26e-05]
[1773188322559,0.01026587,69925.0,69911.0,9.26e-05]
[1773188322966,0.01026587,69920.0,69900.0,0.00585]
[1773188323171,0.01026587,69918.0,69900.0,0.00585]
[1773188324337,0.01026587,69909.0,69890.0,0.07192356]
[1773188324539,0.01026587,69907.0,69890.0,0.0003828]
[1773188324754,0.07152564,69905.0,69890.0,0.0003828]
[1773188324960,0.07152564,69905.0,69898.0,0.0002]
[1773188324961,0.01051248,69904.0,69898.0,0.0002]
[1773188325464,0.01088488,69904.0,69898.0,0.0002]
[1773188326532,0.01188488,69904.0,69898.0,0.0002]
[1773188326905,0.01188488,69904.0,69891.0,0.07153996]
[1773188326906,0.01118508,69903.0,69891.0,0.07153996]
[1773188327106,0.0753392,69904.0,69892.0,0.0003943]
[1773188327107,0.00144,69904.0,69892.0,0.0003943]
[1773188328182,0.00144,69904.0,69890.0,0.07192378]
[1773188328183,0.01145082,69903.0,69890.0,0.0003828]
[1773188328844,0.07152871,69902.0,69890.0,0.0003828]
[1773188329029,0.01992229,69901.0,69890.0,0.0003828]
[1773188329810,0.01992229,69901.0,69890.0,0.07192363]
[1773188330208,0.07152871,69903.0,69890.0,0.07192363]
[1773188330436,0.00144,69902.0,69890.0,0.07192363]
[1773188331747,0.00144,69902.0,69890.0,0.07212363]
[1773188333950,0.07152582,69905.0,69890.0,0.07212363]
[1773188334117,0.07151671,69914.0,69890.0,0.23599212]
[1773188334331,0.02044896,69917.0,69890.0,0.23599212]
[1773188334523,0.00144,69915.0,69890.0,0.23599212]
[1773188334741,0.09195721,69922.0,69891.0,0.466746]
[1773188334951,0.00144,69917.0,69891.0,0.466746]
[1773188335109,0.0207735,69916.0,69892.0,0.07153894]
[1773188335311,0.0207735,69916.0,69893.0,0.00144]
[1773188336157,0.0207735,69916.0,69900.0,0.0004]
[1773188336363,0.07295364,69917.0,69901.0,0.00144]
[1773188336364,0.00144,69917.0,69901.0,0.00144]
[1773188336661,0.00144,69917.0,69901.0,0.14701303]
[1773188337318,0.00144,69917.0,69902.0,0.07152871]
[1773188337529,0.02095224,69915.0,69901.0,0.14701303]
[1773188337727,0.02095224,69915.0,69901.0,0.07296896]
[1773188338330,0.00144,69917.0,69902.0,0.14557303]
[1773188338952,0.07295344,69917.0,69902.0,0.14557303]
[1773188339154,0.07295344,69917.0,69903.0,0.07152768]
[1773188339378,0.02110249,69916.0,69903.0,0.07152768]
[1773188340255,0.00144,69917.0,69903.0,0.07152768]
[1773188340651,0.00144,69919.0,69903.0,0.07152768]
[1773188340897,0.07173594,69925.0,69903.0,0.07152768]
[1773188341027,0.00022001,69924.0,69903.0,0.07152768]
[1773188341224,0.07316716,69924.0,69903.0,0.07152768]
[1773188341471,0.00166001,69924.0,69903.0,0.07152768]
[1773188341886,0.00023,69925.0,69903.0,0.07152768]
[1773188342081,0.00022001,69931.0,69903.0,0.07152768]
[1773188342287,0.14232639,69938.0,69911.0,0.17185]
[1773188342483,0.02124371,69942.0,69912.0,0.00144]
[1773188342645,0.09273193,69942.0,69912.0,0.00144]
[1773188343276,0.09273193,69942.0,69913.0,0.07151745]
[1773188343473,0.09273193,69942.0,69913.0,0.07162928]
[1773188343935,0.07148822,69942.0,69913.0,0.07162928]
[1773188344147,0.02137577,69941.0,69913.0,0.07162928]
[1773188345224,0.00144,69947.0,69922.0,0.07150825]
[1773188345578,0.01146593,69950.0,69923.0,0.00723013]
[1773188345780,0.00023,69950.0,69923.0,0.00723013]
[1773188346137,0.00023,69950.0,69923.0,0.00579013]
[1773188346496,0.00023,69950.0,69925.0,0.00606256]
[1773188347833,0.00023,69950.0,69926.0,0.07150416]
[1773188348037,0.00706,69956.0,69932.0,0.00054308]
[1773188348331,0.00706,69956.0,69934.0,0.00054308]
[1773188348537,0.00562,69956.0,69934.0,0.00054308]
[1773188349542,0.00562,69956.0,69934.0,0.00065491]
[1773188350167,0.00562,69956.0,69936.0,0.00039748]
[1773188350788,0.00022001,69948.0,69936.0,0.00039748]
[1773188351164,0.00562,69956.0,69936.0,0.00039748]
[1773188351412,0.00562,69956.0,69936.0,0.00021567]
[1773188351751,0.00144,69966.0,69941.0,0.00029989]
[1773188351930,0.00144,69967.0,69943.0,0.00029989]
[1773188352080,0.01371809,69969.0,69943.0,0.00029989]
[1773188352081,0.00144,69968.0,69943.0,0.00029989]
[1773188352292,0.07168469,69975.0,69946.0,0.00029989]
[1773188352293,0.00023,69975.0,69946.0,0.00029989]
[1773188352524,0.07168428,69975.0,69946.0,0.00029989]
[1773188353235,0.08551021,69975.0,69946.0,0.00029989]
[1773188353871,0.01382593,69974.0,69946.0,0.00029989]
[1773188354475,0.07145613,69973.0,69947.0,0.07148269]
[1773188354671,0.01382593,69972.0,69947.0,0.07148269]
[1773188354863,0.01382593,69972.0,69948.0,0.00144]
[1773188355619,0.0004,69952.0,69948.0,0.00144]
[1773188355850,0.07145613,69973.0,69948.0,0.00144]
[1773188356051,0.01636808,69972.0,69949.0,0.00023397]
[1773188356618,0.01400684,69970.0,69950.0,0.07147962]
[1773188358717,0.01408376,69968.0,69950.0,0.07147962]
[1773188360070,0.00022001,69979.0,69958.0,0.16349609]
[1773188360322,0.00022001,69979.0,69960.0,0.00035413]
[1773188360535,0.01408376,69978.0,69950.0,0.07170962]
[1773188360720,0.01408376,69978.0,69952.0,0.00028527]
[1773188361331,0.01415641,69976.0,69959.0,0.07147043]
[1773188361551,0.01415641,69976.0,69958.0,0.001]
[1773188361744,0.01415641,69976.0,69954.0,0.00144]
[1773188362629,0.00144,69975.0,69954.0,0.07291543]
[1773188362831,0.01429905,69974.0,69954.0,0.07291543]
[1773188363261,0.07145715,69972.0,69954.0,0.07291543]
[1773188363531,0.01429905,69971.0,69954.0,0.07291543]
[1773188363942,0.01573905,69971.0,69954.0,0.07291543]
[1773188365927,0.01436742,69969.0,69954.0,0.07291543]
[1773188367665,0.0144299,69977.0,69955.0,0.00011955]
[1773188368181,0.08588209,69977.0,69955.0,0.00011955]
[1773188371456,0.00060281,69985.0,69954.0,0.07291543]
[1773188371457,0.00022001,69994.0,69968.0,0.15131381]
[1773188371661,0.00022001,69994.0,69971.0,0.012973]
[1773188371835,0.00022001,69994.0,69973.0,0.012973]
[1773188372191,0.00023,70000.0,69983.0,0.07144592]
[1773188372340,0.00023,70000.0,69984.0,0.014413]
[1773188372690,0.00022001,70004.0,69984.0,0.014413]
[1773188373197,0.00022001,70005.0,69986.0,0.012973]
[1773188374456,0.00022001,70005.0,69988.0,0.012973]
[1773188375615,0.01462843,70004.0,69987.0,0.07144183]
[1773188376514,0.01462843,70004.0,69988.0,0.001]
[1773188376868,0.01462843,70004.0,69987.0,0.07104183]
[1773188377074,0.01462843,70004.0,69987.0,0.07204183]
[1773188377285,0.01462843,70004.0,69987.0,0.07104183]
[1773188377705,0.01462843,70004.0,69988.0,0.001]
[1773188377904,0.01462843,70004.0,69987.0,0.07104183]
[1773188377905,0.00584001,70012.0,69991.0,0.91976]
[1773188378121,0.00022001,70020.0,70000.0,0.16350712]
[1773188378327,0.00022001,70020.0,70001.0,0.00144]
[1773188378550,0.0003828,70027.0,70009.0,0.16350712]
[1773188378706,0.0003828,70027.0,70011.0,0.210566]
[1773188378906,0.00022001,70029.0,70011.0,0.210566]
[1773188379106,0.0002286,70027.0,70011.0,0.21067783]
[1773188379282,0.0002286,70027.0,70012.0,0.30169]
[1773188379495,0.00022001,70029.0,70012.0,0.30169]
[1773188380059,0.00022001,70029.0,70012.0,0.269558]
[1773188380443,0.00022001,70029.0,70013.0,0.208668]
[1773188380644,0.00022001,70029.0,70014.0,0.07141428]
[1773188384288,0.00022001,70036.0,70019.0,0.16350712]
[1773188384418,0.00022001,70036.0,70020.0,0.14122889]
[1773188384626,0.00022001,70036.0,70021.0,0.07140714]
[1773188386836,0.01484694,70036.0,70021.0,0.07140714]
[1773188387640,0.00022001,70036.0,70021.0,0.07140714]
[1773188388840,0.01468746,70036.0,70021.0,0.07140714]
[1773188389344,0.01446745,70035.0,70022.0,0.00144]
[1773188389780,0.01446745,70035.0,70013.0,0.07141428]
[1773188390049,0.01446745,70035.0,70014.0,0.00144]
[1773188390955,0.01426271,70033.0,70015.0,0.07141326]
[1773188391365,0.01426271,70033.0,70016.0,0.00144]
[1773188391565,0.01426271,70033.0,70017.0,0.00144]
[1773188392833,0.01570271,70033.0,70009.0,0.07285926]
[1773188393127,0.01406292,70031.0,70009.0,0.07297109]
[1773188394137,0.00022001,70037.0,70009.0,0.07297109]
[1773188394138,0.01445682,70046.0,70030.0,0.16350712]
[1773188394328,0.01406292,70043.0,70031.0,0.00144]
[1773188394561,0.01406292,70043.0,70012.0,0.00562]
[1773188394562,0.01406292,70043.0,70032.0,0.00144]
[1773188394712,0.01406292,70043.0,70033.0,0.00144]
[1773188395211,0.0717776,70046.0,70033.0,0.00144]
[1773188395212,0.0003939,70046.0,70035.0,0.0010449]
[1773188395409,0.0003939,70046.0,70035.0,0.00115673]
[1773188396410,0.07158228,70075.0,70041.0,0.03234816]
[1773188396632,0.07158228,70075.0,70041.0,0.03194816]
[1773188396633,0.01391434,70074.0,70041.0,0.03194816]
[1773188396854,0.01391434,70074.0,70042.0,0.00144]
[1773188397019,0.01391434,70074.0,70043.0,0.07138472]
[1773188397217,0.01391434,70074.0,70043.0,0.07244251]
[1773188397417,0.01391434,70074.0,70044.0,0.00105779]
[1773188397418,0.01376447,70074.0,70044.0,0.00105779]
[1773188397654,0.07158253,70075.0,70043.0,0.07138472]
[1773188397655,0.01376447,70069.0,70043.0,0.07138472]
[1773188397853,0.01376447,70069.0,70033.0,0.00144]
[1773188397854,0.01376447,70059.0,70027.0,0.07140103]
[1773188398054,0.01376447,70057.0,70027.0,0.07140103]
[1773188399201,0.01436878,70055.0,70027.0,0.07140103]
[1773188399398,0.01436878,70053.0,70027.0,0.07140103]
[1773188401214,0.00181345,70059.0,70040.0,0.16350712]
[1773188401424,0.00181345,70059.0,70041.0,0.00144]
[1773188401795,0.00144,70058.0,70041.0,0.00144]
[1773188402223,1e-08,70059.0,70048.0,0.16350712]
[1773188402565,1e-08,70059.0,70041.0,0.00144]
[1773188403135,1e-08,70059.0,70042.0,0.07138573]
[1773188404811,0.01460176,70059.0,70042.0,0.07138573]
[1773188405221,0.01460176,70059.0,70050.0,0.07137758]
[1773188405826,0.01460176,70059.0,70050.0,0.01669271]
[1773188406374,0.01482177,70059.0,70049.0,0.07185789]
[1773188407575,0.07158879,70059.0,70049.0,0.00048]
[1773188407757,0.07158879,70059.0,70045.0,0.07138199]
[1773188407758,0.0144555,70058.0,70045.0,0.07138199]
[1773188407962,0.0144555,70058.0,70044.0,0.07138268]
[1773188408362,0.0144555,70058.0,70031.0,0.07139695]
[1773188409357,0.0144555,70058.0,70029.0,0.07139695]
[1773188409358,0.07137045,70057.0,70029.0,0.07139695]
[1773188409555,0.07137045,70057.0,70028.0,0.07139695]
[1773188409556,0.01431012,70056.0,70028.0,0.07139695]
[1773188411317,0.01431012,70056.0,70025.0,0.07163252]
[1773188411475,0.01433693,70054.0,70025.0,0.07163252]
[1773188411677,0.01433693,70049.0,70023.0,0.07140413]
[1773188412017,0.01433693,70047.0,70025.0,0.07140292]
[1773188412835,0.01433693,70047.0,70023.0,0.07140413]
[1773188413258,0.01433693,70047.0,70022.0,0.07140558]
[1773188413457,0.01433693,70047.0,70013.0,0.0005939]
[1773188413458,0.07138166,70046.0,70013.0,0.0005939]
[1773188413666,0.01464049,70045.0,70013.0,0.07200879]
[1773188415133,0.01564049,70045.0,70013.0,0.07200879]
[1773188415340,0.01464049,70045.0,70013.0,0.07200879]
[1773188415660,0.0713837,70044.0,70013.0,0.07200879]
[1773188415995,0.01449785,70043.0,70013.0,0.07200879]
[1773188416546,0.01449785,70043.0,70013.0,0.0005939]
[1773188416748,0.01449785,70043.0,70013.0,0.072009]
[1773188416949,0.0723837,70044.0,70013.0,0.072009]
[1773188416950,0.01458006,70041.0,70020.0,0.16350712]
[1773188417183,0.01458006,70039.0,70017.0,0.00144]
[1773188417972,0.01458006,70039.0,70018.0,0.0714102]
[1773188417973,0.01458006,70037.0,70018.0,0.0714102]
[1773188418448,0.01458006,70037.0,70013.0,0.0005939]
[1773188418449,0.01458006,70037.0,70013.0,0.0720091]
[1773188418639,0.01458006,70037.0,70013.0,0.0005939]
[1773188418920,0.01458006,70037.0,70013.0,0.07200887]
[1773188419150,0.07138981,70038.0,70013.0,0.07238231]
[1773188419151,0.01444067,70038.0,70013.0,0.07238231]
[1773188419502,0.01444067,70036.0,70013.0,0.07238231]
[1773188419849,0.07139287,70035.0,70013.0,0.07238231]
[1773188420298,0.01444067,70034.0,70013.0,0.07238231]
[1773188420672,0.00144,70033.0,70013.0,0.07238231]
[1773188420878,0.01444067,70034.0,70013.0,0.07238231]
[1773188421077,0.00144,70032.0,70013.0,0.07238231]
[1773188421283,0.01430372,70033.0,70013.0,0.07238231]
[1773188421486,0.00144,70032.0,70013.0,0.07238231]
[1773188422107,0.07155144,70032.0,70013.0,0.07238231]
[1773188422343,0.01430372,70031.0,70013.0,0.07238231]
[1773188423650,0.01430372,70031.0,70009.0,0.07141734]
[1773188423849,0.01430372,70031.0,70009.0,0.00011189]
[1773188424049,0.07139797,70030.0,70009.0,0.00011189]
[1773188424207,0.01413696,70029.0,70009.0,0.00011189]
[1773188424408,0.01413696,70029.0,70013.0,0.001]
[1773188424652,0.01413696,70029.0,70009.0,0.00011189]
[1773188425294,0.01413696,70029.0,70006.0,1e-08]
[1773188425453,0.01413696,70029.0,70006.0,0.00011192]
[1773188425668,0.01413696,70029.0,70005.0,0.0002]
[1773188425669,0.01513696,70029.0,70005.0,1e-08]
[1773188425911,0.01413696,70029.0,70005.0,0.07153543]
[1773188426088,0.01400299,70025.0,70005.0,0.00011206]
[1773188426636,0.01387472,70023.0,70005.0,0.00011206]
[1773188427907,0.01051949,70023.0,70005.0,0.00011206]
[1773188428104,0.01371636,70021.0,70005.0,0.00011206]
[1773188428298,0.01353551,70021.0,70001.0,0.0002]
[1773188428545,0.01353551,70021.0,70001.0,0.00031209]
[1773188430038,0.07140816,70020.0,69998.0,0.00068]
[1773188430234,0.01371636,70018.0,69998.0,0.00079209]
[1773188430438,0.00144,70017.0,69998.0,0.07543445]
[1773188430639,0.01515636,70016.0,69998.0,0.07222168]
[1773188432481,0.01453032,70014.0,69998.0,0.07222239]
[1773188432882,0.01453032,70014.0,69998.0,0.00079209]
[1773188433322,0.01453032,70014.0,69994.0,0.07163465]
[1773188433631,0.01453032,70014.0,69998.0,0.0002]
[1773188433811,0.00144,70013.0,69998.0,0.0002]
[1773188434191,0.00264538,70013.0,69998.0,0.0002]
[1773188434387,0.01441026,70012.0,69998.0,0.0002]
[1773188434620,0.01428275,70010.0,69998.0,0.0002]
[1773188435556,0.01428275,70010.0,69995.0,0.00144]
[1773188435768,0.01428275,70010.0,69989.0,0.07143929]
[1773188435769,0.01428275,70010.0,69987.0,1e-08]
[1773188435986,0.01428275,70010.0,69987.0,0.00011235]
[1773188436391,0.01428275,70010.0,69976.0,0.07187868]
[1773188436392,0.16315409,70010.0,69976.0,0.07187868]
[1773188436589,0.00120538,70006.0,69976.0,0.07187868]
[1773188436902,0.01563495,70005.0,69976.0,0.07187868]
[1773188437306,0.01419495,70003.0,69976.0,0.07187868]
[1773188438577,0.01419495,70003.0,69976.0,0.0004264]
[1773188438578,0.16315409,70000.0,69976.0,0.0004264]
[1773188438761,0.0141435,69999.0,69976.0,0.0004264]
[1773188438984,0.0141435,69999.0,69976.0,0.0718794]
[1773188439198,0.0141435,69997.0,69976.0,0.0718794]
[1773188439383,0.0141435,69995.0,69976.0,0.0718794]
[1773188439784,0.1135352,70011.0,69976.0,0.0718794]
[1773188439785,0.0141435,70008.0,69981.0,0.718721]
[1773188440020,0.0141435,70008.0,69980.0,0.16315409]
[1773188440021,0.00144,70007.0,69991.0,0.15046477]
[1773188440926,0.07142244,70006.0,69992.0,0.07143673]
[1773188441230,0.0141138,70005.0,69992.0,0.07143673]
[1773188443109,0.0140618,70003.0,69992.0,0.07143673]
[1773188443520,0.0140618,70003.0,69983.0,0.07144592]
[1773188445233,0.01401336,70001.0,69982.0,0.07144686]
[1773188448024,0.07286857,70000.0,69982.0,0.07144686]
[1773188448225,0.08682954,70000.0,69982.0,0.07164686]
[1773188448530,0.07286857,70000.0,69982.0,0.07164686]
[1773188448830,0.01390839,69999.0,69982.0,0.07164686]
[1773188450548,0.07143061,69998.0,69982.0,0.07164686]
[1773188450751,0.07287061,69998.0,69982.0,0.07164686]
[1773188452095,0.08673703,69998.0,69982.0,0.07164686]
[1773188454482,0.07142012,70009.0,69982.0,0.07264686]
[1773188454670,0.00144,70008.0,69983.0,0.469018]
[1773188454900,0.01521015,70008.0,69983.0,0.450585]
[1773188455270,0.08519157,70007.0,69984.0,0.0714449]
[1773188455671,0.0004,70005.0,69985.0,0.00023995]
[1773188455972,0.0004,70005.0,69987.0,0.00023995]
[1773188457263,0.00022001,70001.0,69989.0,0.00029225]
[1773188457586,0.0004,70005.0,69989.0,0.00029225]
[1773188458125,0.0004,70005.0,69988.0,0.07144081]
[1773188458126,0.00022001,70009.0,69992.0,0.0002372]
[1773188458320,0.00022001,70009.0,69994.0,0.0002372]
[1773188459665,0.07163984,70009.0,69995.0,0.07143367]
[1773188460832,0.00011201,70010.0,69995.0,0.07143367]
[1773188461050,0.00144,70015.0,69995.0,0.07243367]
[1773188461254,0.00144,70015.0,69995.0,0.07154568]
[1773188461611,0.00144,70015.0,69995.0,0.07254568]
[1773188462006,0.07163251,70016.0,69995.0,0.07254568]
[1773188462244,0.07307251,70016.0,69995.0,0.07254568]
[1773188462399,0.01527511,70015.0,69995.0,0.07354568]
[1773188462602,0.01527511,70015.0,69995.0,0.07254568]
[1773188462808,0.01383511,70015.0,69995.0,0.07254568]
[1773188463030,0.01527511,70015.0,69995.0,0.07254568]
[1773188463560,0.07141428,70014.0,69995.0,0.07254568]
[1773188463765,0.01527511,70015.0,69995.0,0.07254568]
[1773188463974,0.08668844,70015.0,69995.0,0.07354568]
[1773188464174,0.01378192,70014.0,69995.0,0.07354568]
[1773188464354,0.01378192,70014.0,69995.0,0.07154568]
[1773188464694,0.07285333,70015.0,69995.0,0.07354568]
[1773188464899,0.07307334,70015.0,69995.0,0.07354568]
[1773188465200,0.07307334,70015.0,69995.0,0.07254568]
[1773188465346,0.07307334,70015.0,69995.0,0.07354568]
[1773188466151,0.07307334,70015.0,69995.0,0.07254568]
[1773188466609,0.07307334,70015.0,69995.0,0.07354568]
[1773188466815,0.07307334,70015.0,69995.0,0.07254568]
[1773188467299,0.07307334,70015.0,69995.0,0.07354568]
[1773188467499,0.08676323,70015.0,69995.0,0.07354568]
[1773188468175,0.07163334,70015.0,69995.0,0.07254468]
[1773188468356,0.00022001,70023.0,70000.0,0.48946227]
[1773188468517,1e-08,70024.0,70010.0,0.16315409]
[1773188468857,1e-08,70024.0,70011.0,0.00144]
[1773188469060,1e-08,70024.0,70012.0,0.00144]
[1773188469195,1e-08,70024.0,70013.0,0.00144]
[1773188470028,1e-08,70024.0,70014.0,0.07141428]
[1773188470240,0.00022001,70030.0,70014.0,0.07141428]
[1773188473120,0.00022001,70024.0,70014.0,0.07141428]
[1773188473710,0.00022001,70030.0,70014.0,0.07141428]
[1773188476065,0.00706,70040.0,70014.0,0.07141428]
[1773188476444,0.01369116,70039.0,70014.0,0.07141428]
[1773188477073,0.01369116,70039.0,70014.0,0.07241428]
[1773188477284,0.01369116,70039.0,70014.0,0.07141428]
[1773188477604,0.07160891,70039.0,70014.0,0.07241428]
[1773188477811,0.01341547,70038.0,70014.0,0.07241428]
[1773188478013,0.01341547,70038.0,70014.0,0.07341428]
[1773188478339,0.01341547,70037.0,70014.0,0.07241428]
[1773188479165,0.01341547,70037.0,70014.0,0.07341428]
[1773188479425,0.01341547,70037.0,70014.0,0.07241428]
[1773188479624,0.01341547,70037.0,70015.0,0.00144]
[1773188479820,0.01341547,70037.0,70014.0,0.07341428]
[1773188480116,0.01341547,70037.0,70015.0,0.00144]
[1773188480324,0.01336043,70035.0,70016.0,0.07141224]
[1773188480568,0.01336043,70033.0,70017.0,0.00144]
[1773188480941,0.01336043,70033.0,70018.0,0.00144]
[1773188481344,0.01336043,70033.0,70016.0,0.07141224]
[1773188481511,0.01347266,70033.0,70017.0,0.00144]
[1773188481937,0.01347266,70033.0,70018.0,0.00144]
[1773188482392,0.07150753,70033.0,70006.0,0.07142244]
[1773188482592,0.01330673,70032.0,70007.0,0.00144]
[1773188483961,0.01330673,70032.0,70007.0,0.00244]
[1773188484192,0.01330673,70032.0,70007.0,0.00344]
[1773188484566,0.01330673,70032.0,70008.0,0.0714204]
[1773188486205,0.01330673,70032.0,70009.0,0.00144]
[1773188486206,0.01320347,70030.0,70009.0,0.00144]
[1773188486360,0.01320347,70030.0,70010.0,0.00144]
[1773188486855,0.01314748,70028.0,70011.0,0.07141734]
[1773188487056,0.01314748,70026.0,70011.0,0.07141734]
[1773188488808,0.01309149,70024.0,70009.0,0.00144]
[1773188489365,0.01309149,70024.0,70010.0,0.090069]
[1773188490485,0.01309149,70024.0,70001.0,0.07142755]
[1773188490688,0.0130355,70022.0,70001.0,0.07142755]
[1773188491095,0.0130355,70022.0,70001.0,0.07286755]
[1773188491539,0.0714051,70023.0,70001.0,0.07286755]
[1773188491540,0.0130355,70020.0,70001.0,0.07286755]
[1773188492098,0.00144,70019.0,70001.0,0.07286755]
[1773188492323,0.0130355,70018.0,70001.0,0.07286755]
[1773188494911,0.01320462,70016.0,70005.0,0.0004]
[1773188497381,0.01314726,70015.0,70006.0,0.07142244]
[1773188499469,0.07141428,70014.0,70006.0,0.07142244]
[1773188499658,0.07141428,70014.0,70001.0,0.0002]
[1773188499659,0.01308992,70013.0,70001.0,0.0002]
[1773188499865,0.01452992,70013.0,70001.0,0.0002]
[1773188500532,0.01452992,70013.0,70001.0,0.07162737]
[1773188501731,0.00144,70017.0,70002.0,0.01279287]
[1773188501906,0.07139899,70029.0,70002.0,0.01279287]
[1773188501907,0.01245839,70020.0,70002.0,0.01279287]
[1773188502108,0.07139899,70029.0,70002.0,0.01279287]
[1773188502332,0.01389839,70028.0,70002.0,0.01279287]
[1773188502692,0.00144,70027.0,70006.0,0.0002]
[1773188502891,0.01245839,70026.0,70006.0,0.0002]
[1773188503089,0.01245839,70026.0,70001.0,0.0002]
[1773188503540,0.00144,70027.0,70000.0,1e-08]
[1773188503541,0.01245839,70019.0,70000.0,1e-08]
[1773188503696,0.01245839,70017.0,70000.0,1e-08]
[1773188505061,0.01345839,70017.0,70000.0,1e-08]
[1773188506849,0.0129081,70015.0,70000.0,1e-08]
[1773188508951,0.01285209,70013.0,70000.0,1e-08]
[1773188509183,0.01285209,70011.0,70000.0,1e-08]
[1773188510369,0.01285209,70011.0,70000.0,0.00011202]
[1773188510834,0.01385209,70011.0,70000.0,0.00011202]
[1773188511008,0.01296097,70009.0,70000.0,0.00011202]
[1773188511159,0.01296097,70009.0,69995.0,0.0002]
[1773188511363,0.01307316,70009.0,69995.0,0.0002]
[1773188513345,0.01306413,70007.0,69995.0,0.0002]
[1773188513528,0.01306413,70005.0,69995.0,0.0002]
[1773188514710,0.01406413,70005.0,69995.0,0.0002]
[1773188515371,0.01310904,70003.0,69995.0,0.0002]
[1773188515860,0.002,70005.0,69995.0,0.0002]
[1773188516026,0.00144,70004.0,69995.0,0.0002]
[1773188516630,0.07286374,70005.0,69995.0,0.0002]
[1773188517038,0.07142374,70005.0,69995.0,0.0002]
[1773188517235,0.07286374,70005.0,69995.0,0.0002]
[1773188517629,0.1137339,70022.0,69995.0,0.0002]
[1773188517630,0.00144,70014.0,69997.0,0.00011514]
[1773188517997,0.17026449,70028.0,70002.0,0.839304]
[1773188517998,0.07162042,70028.0,70002.0,0.839304]
[1773188518143,0.07162042,70028.0,70000.0,0.33364869]
[1773188518144,0.00022001,70028.0,70005.0,0.00015142]
[1773188518344,0.07305611,70032.0,70005.0,0.00015142]
[1773188518520,0.00166001,70032.0,70005.0,0.00015142]
[1773188518718,0.00166001,70032.0,70003.0,0.17193355]
[1773188518719,0.00022001,70030.0,70012.0,0.00012658]
[1773188518920,0.07305631,70032.0,70014.0,0.00012658]
[1773188518921,0.00022001,70032.0,70014.0,0.00012658]
[1773188519172,0.00022001,70032.0,70016.0,0.00012658]
[1773188519333,0.00022001,70032.0,70017.0,0.00012658]
[1773188519546,0.00022001,70032.0,70018.0,0.00012658]
[1773188519547,0.07161618,70032.0,70018.0,0.00012658]
[1773188519770,0.01318903,70031.0,70015.0,0.07285273]
[1773188519974,0.01318903,70031.0,70015.0,0.07141273]
[1773188520924,0.01330126,70031.0,70015.0,0.07141273]
[1773188521131,0.01430126,70031.0,70015.0,0.07141273]
[1773188521366,0.01430126,70031.0,70014.0,0.00144]
[1773188521481,0.01430126,70031.0,70000.0,0.16338514]
[1773188521482,0.07139797,70030.0,70008.0,0.24191343]
[1773188521682,0.01322583,70029.0,70008.0,0.07141988]
[1773188522697,0.01322583,70029.0,70005.0,0.00144]
[1773188522900,0.01322583,70029.0,70004.0,0.07142359]
[1773188523600,0.07140001,70028.0,70003.0,0.07142465]
[1773188523805,0.07140001,70028.0,70000.0,0.00023]
[1773188523806,0.01327079,70027.0,70001.0,0.17049355]
[1773188524066,0.01327079,70027.0,70000.0,0.00023]
[1773188524362,0.01327079,70027.0,70000.0,0.07165845]
[1773188525053,0.00144,70026.0,70000.0,0.07165845]
[1773188525258,0.00144,70026.0,70000.0,0.00023]
[1773188525259,0.01330347,70025.0,70000.0,0.00023]
[1773188525482,0.00144,70026.0,70000.0,0.00023]
[1773188525483,0.01330347,70019.0,70000.0,0.00023]
[1773188525693,0.01330347,70015.0,70000.0,0.00043]
[1773188526543,0.01330347,70015.0,69995.0,0.0002]
[1773188526953,0.01430347,70015.0,69995.0,0.0002]
[1773188527157,0.01330347,70015.0,69995.0,0.0002]
[1773188527656,0.07141428,70014.0,69995.0,0.0002]
[1773188527829,0.01333419,70013.0,69995.0,0.0002]
[1773188528231,0.01333419,70011.0,69995.0,0.0002]
[1773188529876,0.01336301,70009.0,69995.0,0.0002]
[1773188531033,0.01336301,70009.0,69995.0,0.00031219]
[1773188532063,0.0714204,70008.0,69995.0,0.00031219]
[1773188532264,0.01339131,70007.0,69995.0,0.00031219]
[1773188532555,0.01339131,70005.0,69995.0,0.00031219]
[1773188534229,0.07142449,70004.0,69995.0,0.00031219]
[1773188534380,0.08484093,70004.0,69995.0,0.00031219]
[1773188535181,0.01343982,70003.0,69995.0,0.00031219]
[1773188535380,0.01343982,70003.0,69991.0,0.0002]
[1773188535381,0.01343982,70003.0,69986.0,1e-08]
[1773188535619,0.01343982,70003.0,69980.0,0.17049355]
[1773188535620,0.01343982,69999.0,69971.0,0.17066551]